[Event "EYCC 2017"]
[Site "Mamaia"]
[Date "2017.09.06"]
[Round "2"]
[White "Henderson de La Fuente, Lance"]
[Black "Suvorov, Alexander"]
[Result "1-0"]
[ECO "B12"]
[WhiteElo "2408"]
[BlackElo "2157"]
[Annotator "NA"]
[PlyCount "79"]
[EventDate "2017.??.??"]
[EventType "swiss"]
[EventCountry "ROU"]
[SourceTitle "playchess.com"]
[Source "ChessBase"]
[SourceQuality "1"]
[TimeControl "40/5400+30:1800+30"]

1. e4 {[%emt 0:00:00]} c6 {[%emt 0:00:08]} 2. d4 {[%emt 0:00:00]} d5 {[%emt 0:00:16]} 3. e5 {[%emt 0:00:08]} Bf5 {[%emt 0:00:25]} 4. h4 {[%emt 0:00:16]} h5 {[%emt 0:01:13]} 5. Bd3 {[%emt 0:00:27]} Bxd3 {[%emt 0:03:37]} 6. Qxd3 {[%emt 0:00:08]} e6 {[%emt 0:00:59]} 7. Bg5 {[%emt 0:00:11]} Qb6 {[%emt 0:02:34]} 8. Nd2 {[%emt 0:00:09]} Nh6 {[%emt 0:08:28]} 9. Ne2 {[%emt 0:02:05]} Nf5 {[%emt 0:01:37]} 10. O-O {[%emt 0:02:08]} Nd7 {[%emt 0:04:29]} 11. c4 {[%emt 0:05:06]} dxc4 {[%emt 0:10:35]} 12. Nxc4 {[%emt 0:00:19]} Qc7 {[%emt 0:02:02]} 13. Ng3 {[%emt 0:05:14]} Nxg3 {[%emt 0:07:04]} 14. fxg3 {[%emt 0:00:19]} Nb6 {[%emt 0:07:06]} 15. Nxb6 {[%emt 0:00:44]} axb6 {[%emt 0:01:02]} 16. Qf3 {[%emt 0:03:32]} g6 {[%emt 0:19:47]} 17. a3 {[%emt 0:10:33]} Bg7 {[%emt 0:04:01]} 18. Rf2 {[%emt 0:00:46]} Ra5 {[%emt 0:03:11]} 19. Raf1 {[%emt 0:00:53]} Rf8 {[%emt 0:00:11]} 20. g4 {[%emt 0:05:02]} hxg4 {[%emt 0:02:45]} 21. Qxg4 {[%emt 0:00:02]} Rd5 {[%emt 0:01:00]} 22. Be3 {[%emt 0:03:54]} c5 {[%emt 0:04:50]} 23. Rxf7 {[%emt 0:02:39]} Qxf7 {[%emt 0:09:20]} 24. Rxf7 {[%emt 0:00:06]} Kxf7 {[%emt 0:00:05]} 25. h5 {[%emt 0:00:11]} g5 {[%emt 0:00:57]} 26. Qxg5 {[%emt 0:00:50]} Bh8 {[%emt 0:02:19]} 27. Qg6+ {[%emt 0:01:01]} Ke7 {[%emt 0:00:02]} 28. Bh6 {[%emt 0:00:25]} Rf7 {[%emt 0:02:51]} 29. Bg5+ {[%emt 0:02:39]} Kf8 {[%emt 0:00:03]} 30. Qxe6 {[%emt 0:00:13]} Rxd4 {[%emt 0:01:03]} 31. Qc8+ {[%emt 0:00:13]} Kg7 {[%emt 0:00:18]} 32. Bf6+ {[%emt 0:00:02]} Rxf6 {[%emt 0:00:21]} 33. exf6+ {[%emt 0:00:03]} Kh7 {[%emt 0:00:10]} 34. Qf5+ {[%emt 0:00:30]} Kg8 {[%emt 0:00:03]} 35. f7+ {[%emt 0:01:42]} Kf8 {[%emt 0:00:04]} 36. Qh7 {[%emt 0:00:08]} Rd1+ {[%emt 0:01:23]} 37. Kf2 {[%emt 0:00:02]} Rd2+ {[%emt 0:00:35]} 38. Ke3 {[%emt 0:00:30]} Rxg2 {[%emt 0:01:56]} 39. Qxh8+ {[%emt 0:00:13]} Kxf7 {[%emt 0:00:07]} 40. Qh7+ {[%emt 0:00:00]} 1-0

[Event "EYCC 2017"]
[Site "Mamaia"]
[Date "2017.09.06"]
[Round "2"]
[White "Haria, Ravi"]
[Black "Haring, Viktor"]
[Result "1/2-1/2"]
[ECO "B40"]
[WhiteElo "2398"]
[BlackElo "2297"]
[Annotator "NA"]
[PlyCount "123"]
[EventDate "2017.??.??"]
[EventType "swiss"]
[EventCountry "ROU"]
[SourceTitle "playchess.com"]
[Source "ChessBase"]
[SourceQuality "1"]
[TimeControl "40/5400+30:1800+30"]

1. e4 {[%emt 0:00:00]} c5 {[%emt 0:00:23]} 2. Nf3 {[%emt 0:00:00]} e6 {[%emt 0:00:38]} 3. c3 {[%emt 0:00:00]} Nf6 {[%emt 0:00:39]} 4. e5 {[%emt 0:00:43]} Nd5 {[%emt 0:00:12]} 5. d4 {[%emt 0:00:18]} cxd4 {[%emt 0:01:01]} 6. cxd4 {[%emt 0:00:12]} d6 {[%emt 0:01:32]} 7. Bc4 {[%emt 0:01:58]} Nb6 {[%emt 0:04:03]} 8. Bb3 {[%emt 0:01:38]} dxe5 {[%emt 0:07:00]} 9. Nxe5 {[%emt 0:00:59]} Nc6 {[%emt 0:01:04]} 10. Nxc6 {[%emt 0:08:57]} bxc6 {[%emt 0:00:10]} 11. O-O {[%emt 0:02:47]} Be7 {[%emt 0:04:20]} 12. Nc3 {[%emt 0:06:31]} O-O {[%emt 0:03:05]} 13. Ne4 {[%emt 0:03:12]} Ba6 {[%emt 0:06:59]} 14. Re1 {[%emt 0:00:34]} Bc4 {[%emt 0:05:33]} 15. Bc2 {[%emt 0:05:59]} f5 {[%emt 0:20:25]} 16. Nc5 {[%emt 0:11:02]} Bxc5 {[%emt 0:04:05]} 17. dxc5 {[%emt 0:00:06]} Qxd1 {[%emt 0:00:30]} 18. Rxd1 {[%emt 0:00:40]} Nd5 {[%emt 0:00:45]} 19. Rd4 {[%emt 0:02:48]} Ba6 {[%emt 0:00:54]} 20. Bb3 {[%emt 0:06:48]} Kh8 {[%emt 0:08:54]} 21. Rd1 {[%emt 0:10:34]} h6 {[%emt 0:11:35]} 22. Bd2 {[%emt 0:01:08]} Rad8 {[%emt 0:04:19]} 23. Ba5 {[%emt 0:00:21]} Rd7 {[%emt 0:10:07]} 24. Rd2 {[%emt 0:04:03]} Rb7 {[%emt 0:02:32]} 25. Re1 {[%emt 0:18:40]} Rb5 {[%emt 0:00:10]} 26. Bxd5 {[%emt 0:00:16]} exd5 {[%emt 0:01:55]} 27. Bc7 {[%emt 0:07:13]} Rb7 {[%emt 0:00:31]} 28. Bd6 {[%emt 0:00:13]} Rff7 {[%emt 0:00:28]} 29. f3 {[%emt 0:01:03]} Kh7 {[%emt 0:00:36]} 30. b3 {[%emt 0:00:32]} Rbd7 {[%emt 0:00:26]} 31. Kf2 {[%emt 0:00:30]} f4 {[%emt 0:00:31]} 32. Rd4 {[%emt 0:00:06]} g5 {[%emt 0:00:08]} 33. Re6 {[%emt 0:00:51]} Rd8 {[%emt 0:00:40]} 34. h4 {[%emt 0:02:13]} Bc8 {[%emt 0:00:19]} 35. Re5 {[%emt 0:00:23]} Rg8 {[%emt 0:00:34]} 36. hxg5 {[%emt 0:01:32]} hxg5 {[%emt 0:00:06]} 37. g4 {[%emt 0:00:00]} fxg3+ {[%emt 0:00:35]} 38. Kxg3 {[%emt 0:00:44]} Kg6 {[%emt 0:00:49]} 39. Be7 {[%emt 0:01:07]} Rf5 {[%emt 0:00:29]} 40. Rxf5 {[%emt 0:00:00]} Kxf5 {[%emt 0:00:23]} 41. Ra4 {[%emt 0:03:53]} Rg7 {[%emt 0:18:14]} 42. Bd6 {[%emt 0:08:50]} Rh7 {[%emt 0:02:28]} 43. Kf2 {[%emt 0:01:44]} a6 {[%emt 0:01:08]} 44. Rb4 {[%emt 0:05:35]} Rb7 {[%emt 0:00:32]} 45. Rd4 {[%emt 0:02:55]} Rg7 {[%emt 0:02:26]} 46. Kg3 {[%emt 0:00:27]} Kf6 {[%emt 0:01:07]} 47. Rd1 {[%emt 0:00:48]} Rh7 {[%emt 0:04:00]} 48. Re1 {[%emt 0:00:35]} Be6 {[%emt 0:00:11]} 49. Be5+ {[%emt 0:00:13]} Kf7 {[%emt 0:00:25]} 50. Bc7 {[%emt 0:01:44]} Rh8 {[%emt 0:01:10]} 51. Rd1 {[%emt 0:01:14]} Rh3+ {[%emt 0:00:55]} 52. Kg2 {[%emt 0:00:30]} Rh8 {[%emt 0:00:57]} 53. Bg3 {[%emt 0:00:47]} Bf5 {[%emt 0:01:07]} 54. Rd4 {[%emt 0:00:06]} Re8 {[%emt 0:00:47]} 55. Kf2 {[%emt 0:00:26]} Bb1 {[%emt 0:00:37]} 56. a3 {[%emt 0:05:41]} Bc2 {[%emt 0:00:34]} 57. Rb4 {[%emt 0:01:37]} Bd3 {[%emt 0:00:16]} 58. Bd6 {[%emt 0:01:03]} Re2+ {[%emt 0:01:05]} 59. Kg3 {[%emt 0:00:01]} Re3 {[%emt 0:00:41]} 60. Kf2 {[%emt 0:01:54]} Re2+ {[%emt 0:00:07]} 61. Kg3 {[%emt 0:00:01]} Re3 {[%emt 0:00:16]} 62. Kf2 {[%emt 0:01:20]} 1/2-1/2

[Event "EYCC 2017"]
[Site "Mamaia"]
[Date "2017.09.06"]
[Round "2"]
[White "Gharibyan, Mamikon"]
[Black "Carlsson, Ludvig"]
[Result "1/2-1/2"]
[ECO "E12"]
[WhiteElo "2365"]
[BlackElo "2154"]
[Annotator "NA"]
[PlyCount "92"]
[EventDate "2017.??.??"]
[EventType "swiss"]
[EventCountry "ROU"]
[SourceTitle "playchess.com"]
[Source "ChessBase"]
[SourceQuality "1"]
[TimeControl "40/5400+30:1800+30"]

1. d4 {[%emt 0:00:00]} Nf6 {[%emt 0:00:11]} 2. Nf3 {[%emt 0:00:12]} e6 {[%emt 0:00:24]} 3. c4 {[%emt 0:00:38]} b6 {[%emt 0:00:19]} 4. a3 {[%emt 0:02:25]} Bb7 {[%emt 0:01:01]} 5. Nc3 {[%emt 0:00:16]} d5 {[%emt 0:02:12]} 6. Bg5 {[%emt 0:06:15]} Be7 {[%emt 0:01:10]} 7. e3 {[%emt 0:01:44]} O-O {[%emt 0:00:25]} 8. Rc1 {[%emt 0:06:20]} h6 {[%emt 0:08:47]} 9. Bh4 {[%emt 0:05:19]} Ne4 {[%emt 0:03:17]} 10. Bxe7 {[%emt 0:03:15]} Qxe7 {[%emt 0:00:07]} 11. cxd5 {[%emt 0:01:50]} exd5 {[%emt 0:01:56]} 12. Bd3 {[%emt 0:00:41]} Nd7 {[%emt 0:01:40]} 13. O-O {[%emt 0:00:40]} f5 {[%emt 0:12:18]} 14. Ne2 {[%emt 0:05:07]} c6 {[%emt 0:03:01]} 15. Nf4 {[%emt 0:03:09]} Qd6 {[%emt 0:02:21]} 16. Ne5 {[%emt 0:08:22]} Nxe5 {[%emt 0:04:29]} 17. dxe5 {[%emt 0:01:30]} Qxe5 {[%emt 0:00:06]} 18. Ng6 {[%emt 0:00:11]} Qxb2 {[%emt 0:00:07]} 19. Nxf8 {[%emt 0:00:20]} Rxf8 {[%emt 0:00:10]} 20. a4 {[%emt 0:04:33]} c5 {[%emt 0:05:15]} 21. a5 {[%emt 0:05:30]} Qe5 {[%emt 0:01:08]} 22. axb6 {[%emt 0:07:35]} axb6 {[%emt 0:00:05]} 23. f3 {[%emt 0:03:17]} Nd6 {[%emt 0:01:20]} 24. Re1 {[%emt 0:02:48]} Re8 {[%emt 0:10:06]} 25. Qd2 {[%emt 0:04:52]} Kh8 {[%emt 0:09:28]} 26. Qf2 {[%emt 0:03:46]} c4 {[%emt 0:05:14]} 27. Bc2 {[%emt 0:04:40]} b5 {[%emt 0:00:13]} 28. Qd2 {[%emt 0:01:46]} Ra8 {[%emt 0:04:35]} 29. Qd4 {[%emt 0:03:51]} Qxd4 {[%emt 0:03:36]} 30. exd4 {[%emt 0:00:06]} b4 {[%emt 0:00:03]} 31. Rb1 {[%emt 0:02:22]} b3 {[%emt 0:00:45]} 32. Bxb3 {[%emt 0:00:06]} cxb3 {[%emt 0:00:05]} 33. Rxb3 {[%emt 0:00:03]} Rd8 {[%emt 0:06:12]} 34. Re6 {[%emt 0:03:22]} Rd7 {[%emt 0:00:13]} 35. Rxd6 {[%emt 0:00:23]} Rxd6 {[%emt 0:00:04]} 36. Rxb7 {[%emt 0:00:04]} Kh7 {[%emt 0:00:08]} 37. Re7 {[%emt 0:01:26]} Kg6 {[%emt 0:00:10]} 38. Re5 {[%emt 0:00:13]} Kf6 {[%emt 0:00:06]} 39. h4 {[%emt 0:01:31]} g6 {[%emt 0:01:10]} 40. Kf2 {[%emt 0:00:00]} g5 {[%emt 0:01:10]} 41. h5 {[%emt 0:04:52]} Rd8 {[%emt 0:05:07]} 42. Ke2 {[%emt 0:01:06]} Rd6 {[%emt 0:00:32]} 43. Kd3 {[%emt 0:02:21]} f4 {[%emt 0:01:05]} 44. Ke2 {[%emt 0:10:03]} Re6 {[%emt 0:00:46]} 45. Rxe6+ {[%emt 0:00:06]} Kxe6 {[%emt 0:00:04]} 46. Kd3 {[%emt 0:00:10]} Kd6 {[%emt 0:00:04] Ke4 Ke5+} 1/2-1/2

[Event "EYCC 2017"]
[Site "Mamaia"]
[Date "2017.09.06"]
[Round "2"]
[White "Engel, Luis"]
[Black "Ileana, George"]
[Result "0-1"]
[ECO "B52"]
[WhiteElo "2363"]
[BlackElo "2219"]
[Annotator "NA"]
[PlyCount "130"]
[EventDate "2017.??.??"]
[EventType "swiss"]
[EventCountry "ROU"]
[SourceTitle "playchess.com"]
[Source "ChessBase"]
[SourceQuality "1"]
[TimeControl "40/5400+30:1800+30"]

1. e4 {[%emt 0:00:00]} c5 {[%emt 0:01:24]} 2. Nf3 {[%emt 0:00:00]} d6 {[%emt 0:00:04]} 3. Bb5+ {[%emt 0:00:00]} Bd7 {[%emt 0:00:30]} 4. Bxd7+ {[%emt 0:00:00]} Qxd7 {[%emt 0:00:04]} 5. O-O {[%emt 0:00:01]} Nf6 {[%emt 0:00:18]} 6. Re1 {[%emt 0:00:09]} Nc6 {[%emt 0:00:13]} 7. d4 {[%emt 0:00:23]} cxd4 {[%emt 0:04:06]} 8. Nxd4 {[%emt 0:00:08]} g6 {[%emt 0:00:17]} 9. Nxc6 {[%emt 0:00:33]} Qxc6 {[%emt 0:01:14]} 10. Nc3 {[%emt 0:00:23]} Bg7 {[%emt 0:00:46]} 11. Nd5 {[%emt 0:00:20]} Rc8 {[%emt 0:07:14]} 12. c3 {[%emt 0:02:21]} h6 {[%emt 0:14:25]} 13. Bf4 {[%emt 0:09:41]} e5 {[%emt 0:05:55]} 14. Nxf6+ {[%emt 0:08:25]} Bxf6 {[%emt 0:00:07]} 15. Be3 {[%emt 0:01:08]} Bg5 {[%emt 0:01:52]} 16. Qd2 {[%emt 0:22:49]} Bxe3 {[%emt 0:00:43]} 17. Qxe3 {[%emt 0:00:07]} Qb6 {[%emt 0:00:16]} 18. Qh3 {[%emt 0:06:34]} O-O {[%emt 0:00:23]} 19. Re2 {[%emt 0:02:27]} Kg7 {[%emt 0:00:22]} 20. Rd2 {[%emt 0:01:17]} Rc4 {[%emt 0:04:44]} 21. Qd3 {[%emt 0:03:12]} Rc6 {[%emt 0:00:13]} 22. Rad1 {[%emt 0:01:13]} Qc5 {[%emt 0:02:51]} 23. Qc2 {[%emt 0:04:41]} b5 {[%emt 0:00:59]} 24. Qb3 {[%emt 0:03:40]} a6 {[%emt 0:02:24]} 25. Rd5 {[%emt 0:04:59]} Qb6 {[%emt 0:00:26]} 26. R1d2 {[%emt 0:03:25]} Rb8 {[%emt 0:03:04]} 27. a3 {[%emt 0:02:50]} Qc7 {[%emt 0:01:16]} 28. g3 {[%emt 0:02:45]} Rbb6 {[%emt 0:01:27]} 29. Kg2 {[%emt 0:01:12]} Rc5 {[%emt 0:00:46]} 30. Qd1 {[%emt 0:02:47]} Rxd5 {[%emt 0:01:22]} 31. Rxd5 {[%emt 0:00:07]} a5 {[%emt 0:00:40]} 32. Qd3 {[%emt 0:03:42]} Qc4 {[%emt 0:01:38]} 33. b4 {[%emt 0:02:21]} axb4 {[%emt 0:02:32]} 34. Qxc4 {[%emt 0:01:05]} bxc4 {[%emt 0:00:35]} 35. axb4 {[%emt 0:00:08]} f5 {[%emt 0:01:26]} 36. Kf3 {[%emt 0:04:26]} Kf6 {[%emt 0:00:29]} 37. Ke3 {[%emt 0:00:13]} Ke6 {[%emt 0:02:08]} 38. f4 {[%emt 0:01:50]} Rc6 {[%emt 0:01:32]} 39. Ra5 {[%emt 0:02:37]} Rc8 {[%emt 0:01:03]} 40. Ra6 {[%emt 0:00:00]} fxe4 {[%emt 0:01:37]} 41. Kxe4 {[%emt 0:06:56]} exf4 {[%emt 0:00:13]} 42. Kxf4 {[%emt 0:04:06]} Rf8+ {[%emt 0:00:59]} 43. Ke3 {[%emt 0:00:17]} Ke5 {[%emt 0:01:50]} 44. Ra5+ {[%emt 0:00:43]} d5 {[%emt 0:02:59]} 45. Ra1 {[%emt 0:03:13]} g5 {[%emt 0:00:40]} 46. b5 {[%emt 0:01:05]} d4+ {[%emt 0:00:33]} 47. cxd4+ {[%emt 0:00:22]} Kd5 {[%emt 0:00:03]} 48. b6 {[%emt 0:01:30]} Re8+ {[%emt 0:01:26]} 49. Kd2 {[%emt 0:00:40]} Kxd4 {[%emt 0:00:04]} 50. Rc1 {[%emt 0:06:22]} Rf8 {[%emt 0:01:09]} 51. Ke2 {[%emt 0:09:06]} Rb8 {[%emt 0:03:52]} 52. Rb1 {[%emt 0:00:26]} c3 {[%emt 0:00:42]} 53. Rd1+ {[%emt 0:04:14]} Kc4 {[%emt 0:02:26]} 54. Rd6 {[%emt 0:00:08]} Kb3 {[%emt 0:00:56]} 55. Rxh6 {[%emt 0:00:52]} c2 {[%emt 0:01:56]} 56. Rc6 {[%emt 0:00:05]} Kb2 {[%emt 0:01:10]} 57. Kf3 {[%emt 0:00:11]} c1=Q {[%emt 0:00:39]} 58. Rxc1 {[%emt 0:00:03]} Kxc1 {[%emt 0:00:24]} 59. Kg4 {[%emt 0:01:11]} Kd2 {[%emt 0:00:43]} 60. Kxg5 {[%emt 0:00:35]} Ke3 {[%emt 0:00:27]} 61. h4 {[%emt 0:00:06]} Ke4 {[%emt 0:00:16]} 62. h5 {[%emt 0:00:14]} Ke5 {[%emt 0:00:22]} 63. Kg6 {[%emt 0:00:52]} Rxb6+ {[%emt 0:00:18]} 64. Kg7 {[%emt 0:00:06]} Kf5 {[%emt 0:00:19]} 65. h6 {[%emt 0:00:40]} Rb7+ {[%emt 0:00:07]} 0-1

[Event "EYCC 2017"]
[Site "Mamaia"]
[Date "2017.09.06"]
[Round "2"]
[White "Gavrilescu, David"]
[Black "Makarian, Rudik"]
[Result "0-1"]
[ECO "E12"]
[WhiteElo "2346"]
[BlackElo "2146"]
[Annotator "NA"]
[PlyCount "82"]
[EventDate "2017.??.??"]
[EventType "swiss"]
[EventCountry "ROU"]
[SourceTitle "playchess.com"]
[Source "ChessBase"]
[SourceQuality "1"]
[TimeControl "40/5400+30:1800+30"]

1. d4 {[%emt 0:00:00]} Nf6 {[%emt 0:00:09]} 2. Nf3 {[%emt 0:00:00]} b6 {[%emt 0:00:28]} 3. c4 {[%emt 0:01:25]} e6 {[%emt 0:01:30]} 4. a3 {[%emt 0:00:57]} Bb7 {[%emt 0:00:11]} 5. Nc3 {[%emt 0:00:13]} d5 {[%emt 0:00:41]} 6. Bg5 {[%emt 0:01:04]} Be7 {[%emt 0:00:53]} 7. Qb3 {[%emt 0:01:26]} Nbd7 {[%emt 0:06:11]} 8. Rd1 {[%emt 0:01:43]} dxc4 {[%emt 0:07:53]} 9. Qxc4 {[%emt 0:00:10]} O-O {[%emt 0:00:08]} 10. e3 {[%emt 0:01:47]} Rc8 {[%emt 0:06:53]} 11. Be2 {[%emt 0:07:28]} c5 {[%emt 0:02:13]} 12. Qa4 {[%emt 0:04:04]} a6 {[%emt 0:09:09]} 13. dxc5 {[%emt 0:06:46]} b5 {[%emt 0:00:13]} 14. Qb3 {[%emt 0:18:24]} Nxc5 {[%emt 0:01:51]} 15. Qa2 {[%emt 0:00:55]} Nd5 {[%emt 0:09:15]} 16. Bxe7 {[%emt 0:05:40]} Qxe7 {[%emt 0:00:39]} 17. Nb1 {[%emt 0:00:31]} Na4 {[%emt 0:10:50]} 18. Nd4 {[%emt 0:05:42]} e5 {[%emt 0:07:02]} 19. Nf5 {[%emt 0:03:12]} Qf6 {[%emt 0:09:08]} 20. Bd3 {[%emt 0:09:07]} e4 {[%emt 0:03:16]} 21. Bxe4 {[%emt 0:00:24]} Ndc3 {[%emt 0:00:04]} 22. Nxc3 {[%emt 0:03:40]} Nxc3 {[%emt 0:00:04]} 23. bxc3 {[%emt 0:00:26]} Bxe4 {[%emt 0:00:05]} 24. Nd4 {[%emt 0:02:52]} Bxg2 {[%emt 0:00:33]} 25. Rg1 {[%emt 0:01:03]} Be4 {[%emt 0:03:15]} 26. Rg4 {[%emt 0:05:10]} Rfe8 {[%emt 0:01:49]} 27. a4 {[%emt 0:01:24]} Bf3 {[%emt 0:02:47]} 28. Nxf3 {[%emt 0:03:58]} Qxf3 {[%emt 0:00:07]} 29. Rg3 {[%emt 0:00:11]} Rxe3+ {[%emt 0:00:51]} 30. fxe3 {[%emt 0:00:52]} Qh1+ {[%emt 0:00:05]} 31. Kf2 {[%emt 0:00:12]} Qxd1 {[%emt 0:00:05]} 32. Rf3 {[%emt 0:00:06]} Qd7 {[%emt 0:01:45]} 33. axb5 {[%emt 0:01:25]} axb5 {[%emt 0:02:31]} 34. Qb3 {[%emt 0:02:13]} h6 {[%emt 0:04:09]} 35. Rf4 {[%emt 0:01:16]} Re8 {[%emt 0:01:25]} 36. Qa2 {[%emt 0:02:41]} Re7 {[%emt 0:02:01]} 37. Rf3 {[%emt 0:01:50]} Qd3 {[%emt 0:01:18]} 38. Qe2 {[%emt 0:00:25]} Qd5 {[%emt 0:00:27]} 39. Rf4 {[%emt 0:05:34]} Ra7 {[%emt 0:00:19]} 40. c4 {[%emt 0:00:00]} Qh1 {[%emt 0:01:05]} 41. cxb5 {[%emt 0:06:45]} Ra2 {[%emt 0:00:46]} 0-1

[Event "EYCC 2017"]
[Site "Mamaia"]
[Date "2017.09.06"]
[Round "2"]
[White "Zachary, Matheo"]
[Black "Lomandong, Marc-Antoine"]
[Result "1-0"]
[ECO "C49"]
[WhiteElo "2325"]
[BlackElo "2121"]
[Annotator "NA"]
[PlyCount "79"]
[EventDate "2017.??.??"]
[EventType "swiss"]
[EventCountry "ROU"]
[SourceTitle "playchess.com"]
[Source "ChessBase"]
[SourceQuality "1"]
[TimeControl "40/5400+30:1800+30"]

1. e4 {[%emt 0:00:00]} e5 {[%emt 0:00:06]} 2. Nf3 {[%emt 0:00:00]} Nc6 {[%emt 0:00:05]} 3. Nc3 {[%emt 0:00:00]} Nf6 {[%emt 0:00:13]} 4. Bb5 {[%emt 0:00:03]} Bb4 {[%emt 0:00:08]} 5. d3 {[%emt 0:00:06]} d6 {[%emt 0:00:22]} 6. O-O {[%emt 0:00:07]} O-O {[%emt 0:00:04]} 7. Ne2 {[%emt 0:00:04]} a6 {[%emt 0:01:36]} 8. Ba4 {[%emt 0:00:56]} b5 {[%emt 0:01:04]} 9. Bb3 {[%emt 0:00:11]} Bg4 {[%emt 0:07:18]} 10. Ng3 {[%emt 0:05:06]} a5 {[%emt 0:23:09]} 11. c3 {[%emt 0:04:30]} Bc5 {[%emt 0:01:17]} 12. h3 {[%emt 0:03:30]} a4 {[%emt 0:05:31]} 13. Bc2 {[%emt 0:09:32]} Bxf3 {[%emt 0:04:18]} 14. Qxf3 {[%emt 0:00:39]} b4 {[%emt 0:15:32]} 15. a3 {[%emt 0:07:22]} b3 {[%emt 0:01:09]} 16. Bd1 {[%emt 0:00:22]} d5 {[%emt 0:09:13]} 17. Bg5 {[%emt 0:04:18]} d4 {[%emt 0:02:02]} 18. c4 {[%emt 0:06:12]} h6 {[%emt 0:09:56]} 19. Bd2 {[%emt 0:05:51]} Ra6 {[%emt 0:02:29]} 20. Nf5 {[%emt 0:03:47]} Ne7 {[%emt 0:05:20]} 21. g4 {[%emt 0:02:58]} Nxf5 {[%emt 0:04:20]} 22. gxf5 {[%emt 0:01:45]} Nh7 {[%emt 0:01:51]} 23. Qg3 {[%emt 0:01:22]} Be7 {[%emt 0:00:56]} 24. f4 {[%emt 0:09:14]} Bh4 {[%emt 0:01:09]} 25. Qg4 {[%emt 0:01:06]} h5 {[%emt 0:00:36]} 26. Qg2 {[%emt 0:04:28]} exf4 {[%emt 0:01:01]} 27. Bxf4 {[%emt 0:02:54]} g5 {[%emt 0:01:09]} 28. Bxh5 {[%emt 0:03:51]} Rh6 {[%emt 0:01:06]} 29. Bf3 {[%emt 0:01:50]} Kh8 {[%emt 0:00:41]} 30. Bh2 {[%emt 0:01:09]} g4 {[%emt 0:01:10]} 31. Bxg4 {[%emt 0:00:50]} Rg8 {[%emt 0:00:19]} 32. e5 {[%emt 0:01:12]} Ng5 {[%emt 0:00:45]} 33. Kh1 {[%emt 0:02:06]} Nxh3 {[%emt 0:00:28]} 34. Qxh3 {[%emt 0:02:04]} Bg5 {[%emt 0:00:33]} 35. Qf3 {[%emt 0:00:36]} Kg7 {[%emt 0:00:25]} 36. Rg1 {[%emt 0:01:55]} Be3 {[%emt 0:00:33]} 37. Rg2 {[%emt 0:00:35]} Rgh8 {[%emt 0:00:27]} 38. Rf1 {[%emt 0:02:10]} Qe8 {[%emt 0:00:30]} 39. Qd5 {[%emt 0:01:14]} c6 {[%emt 0:00:30]} 40. f6+ {[%emt 0:00:00]} 1-0

[Event "EYCC 2017"]
[Site "Mamaia"]
[Date "2017.09.06"]
[Round "2"]
[White "Van Dael, Siem"]
[Black "Minko, Dmitry"]
[Result "1-0"]
[ECO "C50"]
[WhiteElo "2319"]
[BlackElo "2091"]
[Annotator "NA"]
[PlyCount "143"]
[EventDate "2017.??.??"]
[EventType "swiss"]
[EventCountry "ROU"]
[SourceTitle "playchess.com"]
[Source "ChessBase"]
[SourceQuality "1"]
[TimeControl "40/5400+30:1800+30"]

1. e4 {[%emt 0:00:00]} e5 {[%emt 0:00:08]} 2. Nf3 {[%emt 0:00:00]} Nc6 {[%emt 0:00:05]} 3. Bc4 {[%emt 0:00:00]} Bc5 {[%emt 0:00:09]} 4. d3 {[%emt 0:00:00]} Nf6 {[%emt 0:00:20]} 5. Nc3 {[%emt 0:00:03]} d6 {[%emt 0:02:53]} 6. Bg5 {[%emt 0:00:06]} h6 {[%emt 0:01:37]} 7. Bxf6 {[%emt 0:00:09]} Qxf6 {[%emt 0:01:02]} 8. Nd5 {[%emt 0:00:06]} Qd8 {[%emt 0:00:10]} 9. c3 {[%emt 0:00:06]} Bg4 {[%emt 0:08:00]} 10. h3 {[%emt 0:17:17]} Bh5 {[%emt 0:01:00]} 11. b4 {[%emt 0:00:58]} Bb6 {[%emt 0:01:12]} 12. a4 {[%emt 0:00:25]} a6 {[%emt 0:04:50]} 13. Nxb6 {[%emt 0:24:07]} cxb6 {[%emt 0:00:11]} 14. g4 {[%emt 0:00:20]} Bg6 {[%emt 0:00:56]} 15. Nd2 {[%emt 0:00:33]} Ne7 {[%emt 0:06:41]} 16. Qf3 {[%emt 0:02:08]} O-O {[%emt 0:06:02]} 17. O-O {[%emt 0:05:20]} Qd7 {[%emt 0:04:03]} 18. Bb3 {[%emt 0:09:45]} b5 {[%emt 0:07:11]} 19. axb5 {[%emt 0:01:32]} axb5 {[%emt 0:00:02]} 20. Qe3 {[%emt 0:14:49]} Rxa1 {[%emt 0:05:52]} 21. Rxa1 {[%emt 0:00:08]} Rc8 {[%emt 0:00:21]} 22. Ra3 {[%emt 0:02:31]} Kh8 {[%emt 0:02:47]} 23. Ba2 {[%emt 0:01:09]} f6 {[%emt 0:07:38]} 24. Qf3 {[%emt 0:06:31]} Bh7 {[%emt 0:08:45]} 25. Nf1 {[%emt 0:02:09]} Bg8 {[%emt 0:11:02]} 26. Bxg8 {[%emt 0:00:15]} Kxg8 {[%emt 0:00:07]} 27. Ne3 {[%emt 0:00:30]} Qd8 {[%emt 0:05:46]} 28. Qe2 {[%emt 0:03:09]} Kh7 {[%emt 0:02:32]} 29. Qa2 {[%emt 0:01:50]} Rc6 {[%emt 0:00:11]} 30. Qf7 {[%emt 0:04:15]} Rc7 {[%emt 0:04:55]} 31. Qe6 {[%emt 0:01:23]} Rc6 {[%emt 0:00:19]} 32. Qf7 {[%emt 0:03:08]} Rc7 {[%emt 0:00:07]} 33. Nd5 {[%emt 0:01:08]} Nxd5 {[%emt 0:00:32]} 34. Qxd5 {[%emt 0:00:02]} Qc8 {[%emt 0:01:58]} 35. Qb3 {[%emt 0:00:47]} h5 {[%emt 0:00:51]} 36. f3 {[%emt 0:00:28]} hxg4 {[%emt 0:01:05]} 37. hxg4 {[%emt 0:00:11]} Kg6 {[%emt 0:00:18]} 38. Kg2 {[%emt 0:00:29]} Rc6 {[%emt 0:03:27]} 39. Kg3 {[%emt 0:00:52]} Rc7 {[%emt 0:01:47]} 40. Qb2 {[%emt 0:00:00]} Kf7 {[%emt 0:01:21]} 41. Qa1 {[%emt 0:11:39]} Qh8 {[%emt 0:10:20]} 42. Qc1 {[%emt 0:09:03]} Qc8 {[%emt 0:07:39]} 43. Qd2 {[%emt 0:02:31]} Ke7 {[%emt 0:00:11]} 44. Qa2 {[%emt 0:03:38]} Qh8 {[%emt 0:00:36]} 45. Kg2 {[%emt 0:06:27]} Qh6 {[%emt 0:02:49]} 46. Qc2 {[%emt 0:00:07]} Qe3 {[%emt 0:00:26]} 47. Ra5 {[%emt 0:00:54]} Qb6 {[%emt 0:01:33]} 48. Qb3 {[%emt 0:00:25]} Qe3 {[%emt 0:01:50]} 49. Qc2 {[%emt 0:00:05]} Qb6 {[%emt 0:00:00]} 50. Qd2 {[%emt 0:00:31]} Qc6 {[%emt 0:01:41]} 51. Ra3 {[%emt 0:00:52]} Qb6 {[%emt 0:00:37]} 52. g5 {[%emt 0:00:31]} Rc8 {[%emt 0:00:51]} 53. Ra1 {[%emt 0:00:36]} Rh8 {[%emt 0:00:42]} 54. Rh1 {[%emt 0:00:31]} Qd8 {[%emt 0:00:37]} 55. Qe1 {[%emt 0:00:28]} Qc8 {[%emt 0:01:10]} 56. Rxh8 {[%emt 0:00:19]} Qxh8 {[%emt 0:00:02]} 57. Qg3 {[%emt 0:00:29]} Qh7 {[%emt 0:02:32]} 58. Qg4 {[%emt 0:00:43]} Qg6 {[%emt 0:00:24]} 59. gxf6+ {[%emt 0:00:10]} Qxf6 {[%emt 0:02:37]} 60. Kg3 {[%emt 0:00:06]} g5 {[%emt 0:01:06]} 61. Kg2 {[%emt 0:00:54]} Kd8 {[%emt 0:01:04]} 62. c4 {[%emt 0:00:43]} bxc4 {[%emt 0:00:08]} 63. dxc4 {[%emt 0:00:01]} Kc7 {[%emt 0:02:27]} 64. Qf5 {[%emt 0:00:10]} Qxf5 {[%emt 0:00:47]} 65. exf5 {[%emt 0:00:05]} Kd7 {[%emt 0:00:04]} 66. Kg3 {[%emt 0:00:06]} Ke7 {[%emt 0:00:01]} 67. Kg4 {[%emt 0:00:05]} Kf6 {[%emt 0:00:05]} 68. c5 {[%emt 0:00:05]} d5 {[%emt 0:03:11]} 69. b5 {[%emt 0:00:04]} Ke7 {[%emt 0:00:35]} 70. f6+ {[%emt 0:00:29]} Kxf6 {[%emt 0:00:19]} 71. c6 {[%emt 0:00:10]} bxc6 {[%emt 0:00:09]} 72. b6 {[%emt 0:00:05]} 1-0